[Event "Turkish Second League 2019"]
[Site "Konya"]
[Date "2019.07.28"]
[Round "9"]
[White "Kaygisiz, Ilayda"]
[Black "Sade, Defne"]
[Result "1-0"]
[ECO "C44"]
[WhiteElo "1775"]
[BlackElo "1897"]
[Annotator "NA"]
[PlyCount "63"]
[EventDate "2019.07.22"]
[EventType "team-tourn"]
[EventCountry "TUR"]
[SourceTitle "playchess.com"]
[Source "ChessBase"]
[SourceQuality "1"]
[TimeControl "5400+30"]

1. e4 {[%emt 0:00:30]} e5 {[%emt 0:00:30]} 2. Nf3 {[%emt 0:00:30]} Nc6 {[%emt 0:00:30]} 3. d4 {[%emt 0:00:00]} exd4 {[%emt 0:00:30]} 4. Bc4 {[%emt 0:00:00]} Bc5 {[%emt 0:00:30]} 5. O-O {[%emt 0:00:00]} d6 {[%emt 0:05:30]} 6. c3 {[%emt 0:17:00]} dxc3 {[%emt 0:06:30]} 7. Qb3 {[%emt 0:04:30]} Qf6 {[%emt 0:15:30]} 8. Bg5 {[%emt 0:12:30]} Qg6 {[%emt 0:00:30]} 9. Nxc3 {[%emt 0:01:30]} Nge7 {[%emt 0:02:30]} 10. Nd5 {[%emt 0:07:30]} Nxd5 {[%emt 0:08:30]} 11. exd5 {[%emt 0:02:30]} Ne5 {[%emt 0:00:30]} 12. Nxe5 {[%emt 0:11:30]} Qxg5 {[%emt 0:02:30]} 13. Bb5+ {[%emt 0:02:30]} Kf8 {[%emt 0:01:30]} 14. Nf3 {[%emt 0:00:30]} Qf6 {[%emt 0:01:30]} 15. Rae1 {[%emt 0:07:30]} Bf5 {[%emt 0:02:30]} 16. Ba4 {[%emt 0:01:30]} Bb6 {[%emt 0:01:30]} 17. Nd2 {[%emt 0:02:30]} h6 {[%emt 0:04:30]} 18. Nc4 {[%emt 0:01:30]} Kg8 {[%emt 0:02:30]} 19. Re2 {[%emt 0:03:30]} Kh7 {[%emt 0:00:30]} 20. Rfe1 {[%emt 0:00:30]} Qd4 {[%emt 0:13:30]} 21. Nxb6 {[%emt 0:00:30]} axb6 {[%emt 0:07:30]} 22. Bb5 {[%emt 0:03:01]} Ra5 {[%emt 0:05:02]} 23. Re7 {[%emt 0:03:23]} Qc5 {[%emt 0:03:23]} 24. a4 {[%emt 0:00:27]} Bg6 {[%emt 0:00:28]} 25. Qf3 {[%emt 0:04:15]} Rf8 {[%emt 0:06:03]} 26. h4 {[%emt 0:01:06]} c6 {[%emt 0:06:36]} 27. h5 {[%emt 0:04:01]} Bc2 {[%emt 0:01:40]} 28. dxc6 {[%emt 0:03:14]} bxc6 {[%emt 0:00:12]} 29. Bxc6 {[%emt 0:01:50]} d5 {[%emt 0:00:15]} 30. Rxf7 {[%emt 0:01:31]} Rxf7 {[%emt 0:00:30]} 31. Qxf7 {[%emt 0:00:00]} Qxc6 {[%emt 0:01:17]} 32. Re7 {[%emt 0:01:00]} 1-0

[Event "Turkish Second League 2019"]
[Site "Konya"]
[Date "2019.07.28"]
[Round "9"]
[White "Zuberoglu, Ibrahim Berk"]
[Black "Sahutoglu, Mehmet Ibrahim"]
[Result "0-1"]
[ECO "A09"]
[WhiteElo "1737"]
[BlackElo "1898"]
[Annotator "NA"]
[PlyCount "124"]
[EventDate "2019.07.22"]
[EventType "team-tourn"]
[EventCountry "TUR"]
[SourceTitle "playchess.com"]
[Source "ChessBase"]
[SourceQuality "1"]
[TimeControl "5400+30"]

1. Nf3 {[%emt 0:00:30]} d5 {[%emt 0:00:30]} 2. c4 {[%emt 0:00:00]} d4 {[%emt 0:00:00]} 3. g3 {[%emt 0:02:00]} g6 {[%emt 0:00:00]} 4. Bg2 {[%emt 0:00:30]} Bg7 {[%emt 0:00:30]} 5. O-O {[%emt 0:00:30]} e5 {[%emt 0:00:30]} 6. d3 {[%emt 0:01:30]} Ne7 {[%emt 0:00:00]} 7. e3 {[%emt 0:02:30]} Nbc6 {[%emt 0:00:00]} 8. exd4 {[%emt 0:09:30]} Nxd4 {[%emt 0:02:30]} 9. Nxd4 {[%emt 0:06:30]} Qxd4 {[%emt 0:00:30]} 10. Nc3 {[%emt 0:00:00]} c6 {[%emt 0:00:30]} 11. Be3 {[%emt 0:02:00]} Qd6 {[%emt 0:02:30]} 12. Ne4 {[%emt 0:04:30]} Qc7 {[%emt 0:01:30]} 13. Bc5 {[%emt 0:13:30]} O-O {[%emt 0:02:30]} 14. Bd6 {[%emt 0:00:30]} Qd7 {[%emt 0:07:30]} 15. Qb3 {[%emt 0:04:30]} Rd8 {[%emt 0:04:30]} 16. f4 {[%emt 0:08:30]} exf4 {[%emt 0:05:30]} 17. Rxf4 {[%emt 0:01:30]} Nf5 {[%emt 0:00:00]} 18. c5 {[%emt 0:10:30]} Nd4 {[%emt 0:03:00]} 19. Qd1 {[%emt 0:00:00]} f5 {[%emt 0:00:30]} 20. Ng5 {[%emt 0:05:00]} h6 {[%emt 0:01:30]} 21. Nf3 {[%emt 0:00:30]} Nb5 {[%emt 0:03:30]} 22. Qb3+ {[%emt 0:08:03]} Qe6 {[%emt 0:02:30]} 23. Qxe6+ {[%emt 0:00:57]} Bxe6 {[%emt 0:00:30]} 24. Be5 {[%emt 0:00:07]} Rxd3 {[%emt 0:01:30]} 25. a4 {[%emt 0:00:20]} g5 {[%emt 0:08:30]} 26. Rb4 {[%emt 0:00:43]} Bxe5 {[%emt 0:00:30]} 27. Nxe5 {[%emt 0:11:21]} Rd4 {[%emt 0:00:30]} 28. Nxc6 {[%emt 0:02:04]} bxc6 {[%emt 0:12:30]} 29. Rxb5 {[%emt 0:00:07]} cxb5 {[%emt 0:08:30]} 30. Bxa8 {[%emt 0:00:02]} bxa4 {[%emt 0:01:30]} 31. Rc1 {[%emt 0:02:50]} Kf7 {[%emt 0:02:30]} 32. c6 {[%emt 0:01:45]} Rd8 {[%emt 0:01:30]} 33. Bb7 {[%emt 0:00:16]} Bc8 {[%emt 0:01:30]} 34. Rc5 {[%emt 0:01:28]} Bxb7 {[%emt 0:06:30]} 35. cxb7 {[%emt 0:00:02]} Rd1+ {[%emt 0:00:30]} 36. Kf2 {[%emt 0:00:30]} Rd2+ {[%emt 0:00:30]} 37. Ke3 {[%emt 0:00:30]} Rxb2 {[%emt 0:00:00]} 38. Rxf5+ {[%emt 0:00:00]} Ke6 {[%emt 0:00:00]} 39. Ra5 {[%emt 0:00:00]} Rxb7 {[%emt 0:00:00]} 40. Rxa4 {[%emt 0:00:00]} Kd5 {[%emt 0:06:49]} 41. Kd3 {[%emt 0:01:05]} Kc5 {[%emt 0:00:18]} 42. Kc3 {[%emt 0:00:37]} Rf7 {[%emt 0:01:16]} 43. Ra6 {[%emt 0:01:52]} Rh7 {[%emt 0:01:14]} 44. Ra5+ {[%emt 0:01:24]} Kb6 {[%emt 0:00:30]} 45. Kb4 {[%emt 0:00:00]} a6 {[%emt 0:00:00]} 46. Re5 {[%emt 0:00:10]} Rc7 {[%emt 0:00:01]} 47. Rf5 {[%emt 0:01:38]} Rc6 {[%emt 0:00:05]} 48. Re5 {[%emt 0:00:00]} Rd6 {[%emt 0:00:16]} 49. Rf5 {[%emt 0:01:24]} Re6 {[%emt 0:00:01]} 50. Kc4 {[%emt 0:00:40]} Re4+ {[%emt 0:08:01]} 51. Kd3 {[%emt 0:00:30]} Re6 {[%emt 0:02:06]} 52. Kc4 {[%emt 0:00:30]} a5 {[%emt 0:00:00]} 53. Rb5+ {[%emt 0:00:44]} Ka6 {[%emt 0:00:10]} 54. Rb8 {[%emt 0:00:00]} Rc6+ {[%emt 0:00:00]} 55. Kd5 {[%emt 0:01:07]} Rb6 {[%emt 0:00:00]} 56. Rc8 {[%emt 0:00:10]} Kb5 {[%emt 0:00:03]} 57. Rc1 {[%emt 0:00:26]} a4 {[%emt 0:00:25]} 58. Rb1+ {[%emt 0:00:32]} Ka5 {[%emt 0:00:04]} 59. Ra1 {[%emt 0:00:13]} Rb2 {[%emt 0:00:04]} 60. Ke4 {[%emt 0:00:49]} Rxh2 {[%emt 0:00:35]} 61. Kf5 {[%emt 0:00:11]} Kb4 {[%emt 0:00:00]} 62. Kg6 {[%emt 0:00:41]} a3 {[%emt 0:00:00]} 0-1

[Event "Turkish Second League 2019"]
[Site "Konya"]
[Date "2019.07.28"]
[Round "9"]
[White "Guney, Gamze Nur"]
[Black "Kara, Gulce Nehir"]
[Result "1/2-1/2"]
[ECO "B42"]
[WhiteElo "1735"]
[BlackElo "1767"]
[Annotator "NA"]
[PlyCount "97"]
[EventDate "2019.07.22"]
[EventType "team-tourn"]
[EventCountry "TUR"]
[SourceTitle "playchess.com"]
[Source "ChessBase"]
[SourceQuality "1"]
[TimeControl "5400+30"]

1. e4 {[%emt 0:00:00]} c5 {[%emt 0:07:30]} 2. Nf3 {[%emt 0:00:00]} e6 {[%emt 0:00:30]} 3. d4 {[%emt 0:00:00]} cxd4 {[%emt 0:00:30]} 4. Nxd4 {[%emt 0:00:00]} a6 {[%emt 0:00:30]} 5. c4 {[%emt 0:00:30]} Nf6 {[%emt 0:00:30]} 6. Bd3 {[%emt 0:00:30]} d6 {[%emt 0:00:30]} 7. O-O {[%emt 0:00:30]} Be7 {[%emt 0:02:30]} 8. b3 {[%emt 0:02:30]} O-O {[%emt 0:03:30]} 9. Bb2 {[%emt 0:00:30]} Qc7 {[%emt 0:05:30]} 10. Re1 {[%emt 0:00:30]} Nc6 {[%emt 0:03:30]} 11. Nxc6 {[%emt 0:07:30]} bxc6 {[%emt 0:01:30]} 12. e5 {[%emt 0:02:30]} Ne8 {[%emt 0:16:30]} 13. Qh5 {[%emt 0:19:30]} g6 {[%emt 0:04:30]} 14. Qh6 {[%emt 0:07:30]} dxe5 {[%emt 0:06:30]} 15. Rxe5 {[%emt 0:06:30]} f5 {[%emt 0:03:30]} 16. Re2 {[%emt 0:09:30]} Bf6 {[%emt 0:05:30]} 17. Nc3 {[%emt 0:01:30]} e5 {[%emt 0:08:30]} 18. c5 {[%emt 0:00:30]} Be6 {[%emt 0:02:30]} 19. Rae1 {[%emt 0:08:30]} e4 {[%emt 0:07:00]} 20. Bb1 {[%emt 0:00:30]} Qa5 {[%emt 0:01:28]} 21. Qc1 {[%emt 0:06:30]} Rd8 {[%emt 0:04:25]} 22. Na4 {[%emt 0:03:30]} Bxb2 {[%emt 0:02:43]} 23. Qxb2 {[%emt 0:00:30]} Nc7 {[%emt 0:02:39]} 24. Bc2 {[%emt 0:09:38]} Nd5 {[%emt 0:03:43]} 25. a3 {[%emt 0:03:55]} Nf4 {[%emt 0:04:04]} 26. Re3 {[%emt 0:00:01]} Nd3 {[%emt 0:02:11]} 27. Bxd3 {[%emt 0:00:26]} Rxd3 {[%emt 0:00:08]} 28. Nc3 {[%emt 0:02:52]} Rxe3 {[%emt 0:01:06]} 29. Rxe3 {[%emt 0:00:13]} Qxc5 {[%emt 0:00:15]} 30. g3 {[%emt 0:02:06]} Rb8 {[%emt 0:00:28]} 31. Ne2 {[%emt 0:01:38]} Qd5 {[%emt 0:00:37]} 32. Qf6 {[%emt 0:03:09]} Bf7 {[%emt 0:00:34]} 33. b4 {[%emt 0:01:05]} Qd1+ {[%emt 0:00:44]} 34. Kg2 {[%emt 0:00:01]} Qd5 {[%emt 0:00:21]} 35. Nf4 {[%emt 0:00:28]} Qd7 {[%emt 0:00:26]} 36. h4 {[%emt 0:00:23]} Rd8 {[%emt 0:00:35]} 37. h5 {[%emt 0:01:11]} Qd6 {[%emt 0:00:21]} 38. Qg5 {[%emt 0:00:38]} Re8 {[%emt 0:00:36]} 39. h6 {[%emt 0:00:49]} Qe7 {[%emt 0:00:26]} 40. Qxe7 {[%emt 0:01:16]} Rxe7 {[%emt 0:00:02]} 41. Rc3 {[%emt 0:00:00]} Rc7 {[%emt 0:00:49]} 42. a4 {[%emt 0:00:22]} Kf8 {[%emt 0:00:22]} 43. b5 {[%emt 0:00:00]} Ke7 {[%emt 0:00:42]} 44. b6 {[%emt 0:00:53]} Rb7 {[%emt 0:00:46]} 45. Rxc6 {[%emt 0:00:13]} Kd7 {[%emt 0:00:00]} 46. Rf6 {[%emt 0:00:35]} Ke7 {[%emt 0:00:16]} 47. Rc6 {[%emt 0:00:42]} Kd7 {[%emt 0:00:12]} 48. Rf6 {[%emt 0:00:41]} Ke7 {[%emt 0:00:04]} 49. Rc6 {[%emt 0:00:05]} 1/2-1/2

[Event "Turkish Second League 2019"]
[Site "Konya"]
[Date "2019.07.28"]
[Round "9"]
[White "Mustu, Hatice Asli"]
[Black "Gunes, Deren"]
[Result "1/2-1/2"]
[ECO "D02"]
[WhiteElo "1679"]
[BlackElo "1266"]
[Annotator "NA"]
[PlyCount "69"]
[EventDate "2019.07.22"]
[EventType "team-tourn"]
[EventCountry "TUR"]
[SourceTitle "playchess.com"]
[Source "ChessBase"]
[SourceQuality "1"]
[TimeControl "5400+30"]

1. d4 {[%emt 0:03:30]} Nf6 {[%emt 0:00:30]} 2. Nf3 {[%emt 0:01:30]} d5 {[%emt 0:00:00]} 3. Bf4 {[%emt 0:00:00]} c5 {[%emt 0:00:00]} 4. e3 {[%emt 0:00:00]} Nc6 {[%emt 0:00:30]} 5. c3 {[%emt 0:01:30]} e6 {[%emt 0:00:30]} 6. Nbd2 {[%emt 0:00:30]} Bd6 {[%emt 0:00:30]} 7. Bg3 {[%emt 0:02:30]} O-O {[%emt 0:00:00]} 8. Bd3 {[%emt 0:01:30]} Re8 {[%emt 0:01:00]} 9. Qe2 {[%emt 0:07:30]} e5 {[%emt 0:02:30]} 10. dxe5 {[%emt 0:02:30]} Nxe5 {[%emt 0:00:30]} 11. Nxe5 {[%emt 0:02:30]} Bxe5 {[%emt 0:00:00]} 12. Nf3 {[%emt 0:09:30]} Bd6 {[%emt 0:03:00]} 13. Rd1 {[%emt 0:04:30]} a6 {[%emt 0:14:30]} 14. Qc2 {[%emt 0:05:30]} Bg4 {[%emt 0:06:30]} 15. Bxh7+ {[%emt 0:07:30]} Kh8 {[%emt 0:12:30]} 16. Bf5 {[%emt 0:05:30]} Bxf5 {[%emt 0:07:30]} 17. Qxf5 {[%emt 0:00:30]} Qe7 {[%emt 0:01:30]} 18. Ng5 {[%emt 0:05:30]} Rad8 {[%emt 0:04:30]} 19. Qh3+ {[%emt 0:04:30]} Kg8 {[%emt 0:01:30]} 20. Rxd5 {[%emt 0:00:00]} Bc7 {[%emt 0:06:30]} 21. Rxd8 {[%emt 0:01:00]} Rxd8 {[%emt 0:00:00]} 22. O-O {[%emt 0:00:00]} Bxg3 {[%emt 0:03:00]} 23. Qxg3 {[%emt 0:02:00]} Qd6 {[%emt 0:10:30]} 24. Qxd6 {[%emt 0:01:30]} Rxd6 {[%emt 0:00:30]} 25. Nf3 {[%emt 0:00:30]} Ne4 {[%emt 0:00:30]} 26. Rb1 {[%emt 0:10:30]} Rb6 {[%emt 0:02:30]} 27. b3 {[%emt 0:08:19]} Nxc3 {[%emt 0:00:30]} 28. Rb2 {[%emt 0:00:31]} c4 {[%emt 0:04:17]} 29. Nd4 {[%emt 0:01:41]} cxb3 {[%emt 0:02:33]} 30. axb3 {[%emt 0:01:51]} Nb5 {[%emt 0:02:18]} 31. Nf3 {[%emt 0:01:40]} Nc3 {[%emt 0:03:07]} 32. Kf1 {[%emt 0:02:42]} Na4 {[%emt 0:00:47]} 33. Rb1 {[%emt 0:01:22]} Nc3 {[%emt 0:01:53]} 34. Rb2 {[%emt 0:01:45]} Na4 {[%emt 0:00:13]} 35. Rb1 {[%emt 0:01:56]} 1/2-1/2